bitfinex-derivatives/quotes_ETHF0:USTF0_20260201
["timestamp","ask_amount","ask_price","bid_price","bid_amount"]
[1769953527790,37.1437775,2394.7,2393.4,1.07398341]
[1769953527992,37.1437775,2394.7,2393.6,1.07398341]
[1769953528691,37.1437775,2394.8,2393.6,1.07398341]
[1769953529590,37.1437775,2394.9,2393.6,1.07398341]
[1769953534596,37.1437775,2394.8,2393.6,1.07398341]
[1769953535292,37.1437775,2395.0,2393.6,1.28304341]
[1769953535690,37.1437775,2394.9,2393.6,1.28304341]
[1769953538299,37.1437775,2394.8,2393.6,1.28304341]
[1769953538497,37.1437775,2394.8,2393.3,3.71429138]
[1769953538800,37.1437775,2393.7,2392.8,1.07252522]
[1769953539396,37.1437775,2393.6,2392.8,1.07252522]
[1769953539804,37.1437775,2393.6,2392.6,1.07252522]
[1769953541194,37.1437775,2393.7,2392.6,1.07252522]
[1769953543194,37.1437775,2393.8,2392.6,1.07252522]
[1769953548604,37.1437775,2393.7,2392.6,1.07252522]
[1769953550107,37.1437775,2393.7,2392.6,4.7868166]
[1769953550913,37.1437775,2393.7,2392.7,1.0739333]
[1769953551710,37.1437775,2393.7,2392.3,1.0739333]
[1769953552014,44.8457775,2393.6,2392.3,1.0739333]
[1769953552307,37.1437775,2393.5,2392.3,1.0739333]
[1769953552712,37.1437775,2393.5,2392.3,4.78822468]
[1769953553313,37.1437775,2393.5,2392.3,1.0739333]
[1769953554818,37.1437775,2393.4,2392.3,1.0739333]
[1769953556214,37.1437775,2393.5,2392.3,1.0739333]
[1769953558516,37.1437775,2393.6,2392.8,1.07428792]
[1769953558719,37.1437775,2393.8,2392.8,1.07428792]
[1769953558921,37.1437775,2393.8,2392.9,1.07428792]
[1769953559418,37.1437775,2393.8,2392.9,4.7885793]
[1769953560320,37.1437775,2393.9,2393.0,4.7885793]
[1769953560522,37.1437775,2393.9,2393.0,1.07428792]
[1769953561421,37.1437775,2393.8,2393.0,4.7885793]
[1769953561719,9.07774059,2394.6,2393.8,1.07322921]
[1769953561913,4.9282983,2395.0,2393.5,1.07322921]
[1769953562317,4.1784,2394.8,2393.5,1.07322921]
[1769953562538,2.47736732,2394.8,2393.5,1.07322921]
[1769953562713,5.1372283,2395.1,2393.5,1.07322921]
[1769953562714,2.47736732,2395.1,2393.5,1.07322921]
[1769953563021,2.47736732,2395.0,2393.5,1.07322921]
[1769953563422,2.47736732,2395.1,2393.5,1.07322921]
[1769953564324,2.47736732,2395.0,2393.5,1.07322921]
[1769953566123,2.47736732,2395.0,2393.7,1.07211487]
[1769953566320,2.47736732,2395.2,2393.7,1.07211487]
[1769953566520,2.47736732,2395.3,2393.7,1.07211487]
[1769953568529,2.47736732,2395.3,2393.9,1.07499688]
[1769953568725,2.47736732,2395.4,2393.9,1.07845013]
[1769953569326,4.92936732,2395.5,2393.9,1.07845013]
[1769953569526,2.47736732,2395.6,2393.9,1.07845013]
[1769953570319,2.47736732,2395.7,2393.9,1.07845013]
[1769953570716,6.65576732,2395.7,2393.9,1.07845013]
[1769953571627,2.47736732,2395.6,2393.9,1.07845013]
[1769953574329,2.47736732,2395.7,2394.1,1.07478061]
[1769953574532,2.47736732,2395.7,2394.3,1.07478061]
[1769953574926,4.1784,2395.6,2394.3,1.07478061]
[1769953575325,4.1784,2395.5,2394.3,1.07478061]
[1769953575530,4.1784,2395.6,2394.3,1.07478061]
[1769953576325,2.47736732,2395.8,2394.3,1.07478061]
[1769953576530,6.65576732,2395.8,2394.3,1.07478061]
[1769953578332,4.1784,2395.5,2394.3,1.07478061]
[1769953578830,2.47736732,2395.8,2394.3,1.07478061]
[1769953579032,4.1784,2395.7,2394.3,1.07478061]
[1769953579532,4.1784,2395.6,2394.3,1.07478061]
[1769953579732,4.1784,2395.7,2394.3,1.07478061]
[1769953580232,4.1784,2395.6,2394.3,1.07478061]
[1769953580432,4.1784,2395.5,2394.3,1.07478061]
[1769953580932,4.1784,2395.3,2394.3,1.07478061]
[1769953581231,4.1784,2395.5,2394.3,1.07478061]
[1769953581930,4.1784,2395.3,2394.3,1.07478061]
[1769953582231,4.1784,2395.5,2394.3,1.07478061]
[1769953582629,4.1784,2395.3,2394.3,1.07478061]
[1769953582833,4.1784,2395.6,2394.3,1.07478061]
[1769953583332,4.1784,2395.5,2394.3,1.07478061]
[1769953583634,6.65576732,2395.7,2394.3,1.07478061]
[1769953583832,4.1784,2395.6,2394.3,1.07478061]
[1769953584234,4.1784,2395.5,2394.3,1.07478061]
[1769953584430,4.1784,2395.6,2394.3,1.07478061]
[1769953584933,2.47736732,2395.8,2394.3,1.07478061]
[1769953585128,2.68622732,2395.9,2394.3,1.07478061]
[1769953585334,4.1784,2395.7,2394.3,1.07478061]
[1769953585533,4.1784,2395.5,2394.3,1.07478061]
[1769953585734,4.1784,2395.3,2394.3,1.07478061]
[1769953585931,4.1784,2395.2,2394.3,1.07478061]
[1769953586133,4.1784,2395.4,2394.3,1.07478061]
[1769953586326,4.1784,2395.3,2394.3,1.07478061]
[1769953586738,4.1784,2395.2,2394.3,1.07478061]
[1769953587035,4.1784,2395.3,2394.3,1.07478061]
[1769953587536,4.1784,2395.2,2394.3,1.07478061]
[1769953587837,4.1784,2395.3,2394.3,1.07478061]
[1769953588336,4.1784,2395.2,2394.3,1.07478061]
[1769953588537,6.65576732,2395.4,2394.3,1.07478061]
[1769953588737,4.1784,2395.2,2394.3,1.07478061]
[1769953589238,4.1784,2395.1,2394.3,1.07478061]
[1769953589532,2.47736732,2395.3,2394.3,1.07478061]
[1769953589738,4.1784,2395.2,2394.3,1.07478061]
[1769953590840,4.1784,2395.1,2394.3,1.07478061]
[1769953591040,4.1784,2395.2,2394.3,1.07478061]
[1769953591240,6.65576732,2395.2,2394.3,1.07478061]
[1769953591440,4.1784,2395.1,2394.3,1.07478061]
[1769953592141,2.47736732,2395.2,2394.3,1.07478061]
[1769953593140,37.32267952,2395.4,2394.3,1.07478061]
[1769953593141,2.47736732,2395.3,2394.4,1.07489553]
[1769953594043,2.47736732,2395.4,2394.4,3.563815]
[1769953594240,2.47736732,2395.4,2394.5,1.07489553]
[1769953595232,6.65576732,2395.4,2394.5,1.07489553]
[1769953595433,6.65576732,2395.4,2394.6,1.07479905]
[1769953595837,4.1784,2395.3,2394.6,1.07479905]
[1769953596441,6.65576732,2395.3,2394.6,1.07479905]
[1769953597150,6.65576732,2395.3,2394.8,1.07478312]
[1769953597440,2.47736732,2395.3,2394.8,1.07478312]
[1769953597643,4.1784,2395.2,2394.8,1.07478312]
[1769953597847,4.1784,2395.1,2394.8,1.07478312]
[1769953598140,4.1784,2395.0,2394.8,1.07478312]
[1769953598332,4.1784,2395.1,2394.8,1.07478312]
[1769953598737,4.1784,2395.0,2394.8,1.07478312]
[1769953599045,37.32267952,2395.4,2394.8,1.07478312]
[1769953599046,4.1784,2395.2,2394.8,1.07478312]
[1769953599541,2.47736732,2395.4,2394.8,1.07478312]
[1769953599841,4.1784,2395.2,2394.8,1.07478312]
[1769953600341,4.1784,2395.1,2394.8,1.07478312]
[1769953600536,4.1784,2395.2,2394.8,1.07478312]
[1769953600944,4.1784,2395.1,2394.8,1.07478312]
[1769953601243,4.1784,2395.2,2394.8,1.07478312]
[1769953601645,4.1784,2395.1,2394.8,1.07478312]
[1769953601839,4.1740579,2395.2,2394.8,1.07478312]
[1769953602439,4.1740579,2395.1,2394.8,1.07478312]
[1769953602635,4.1740579,2395.2,2394.8,1.07478312]
[1769953603247,4.1740579,2395.1,2394.8,1.07478312]
[1769953603440,4.1740579,2395.2,2394.8,1.07478312]
[1769953603847,4.1740579,2395.1,2394.8,1.07478312]
[1769953604038,4.1740579,2395.2,2394.8,1.07478312]
[1769953604439,4.1740579,2395.1,2394.8,1.07478312]
[1769953604636,4.1740579,2395.2,2394.8,1.07478312]
[1769953604841,4.1740579,2395.1,2394.8,1.07478312]
[1769953605039,4.1740579,2395.3,2394.8,1.07478312]
[1769953605241,4.1740579,2395.2,2394.8,1.07478312]
[1769953605746,4.1740579,2395.1,2394.8,1.07478312]
[1769953606245,4.1740579,2394.9,2394.8,1.07478312]
[1769953606446,3.20386072,2395.1,2394.8,1.07478312]
[1769953606639,3.20386072,2395.2,2394.8,1.07478312]
[1769953607036,3.20386072,2395.0,2394.8,1.07478312]
[1769953607240,3.20386072,2395.2,2394.8,1.07478312]
[1769953607440,2.47736732,2395.5,2394.8,1.07478312]
[1769953607647,3.20386072,2395.2,2394.8,1.07478312]
[1769953608049,3.20386072,2395.0,2394.8,1.07478312]
[1769953608347,3.20386072,2395.2,2394.8,1.07478312]
[1769953608846,3.20386072,2395.0,2394.8,1.07478312]
[1769953609047,1.59110787,2395.1,2394.8,1.07478312]
[1769953609249,1.32247261,2395.3,2394.8,1.07478312]
[1769953609648,1.32247261,2395.1,2394.8,1.07478312]
[1769953609944,1.32247261,2395.1,2394.7,3.872]
[1769953610143,1.32247261,2394.9,2394.7,3.872]
[1769953610340,1.32247261,2394.8,2394.7,3.872]
[1769953610546,1.32247261,2395.0,2394.7,4.03023336]
[1769953610741,1.32247261,2395.2,2394.8,0.15823336]
[1769953610948,1.32247261,2395.1,2394.8,0.15823336]
[1769953611447,1.32247261,2394.9,2394.8,0.15823336]
[1769953611651,1.32247261,2395.2,2394.8,0.15823336]
[1769953612145,2.53721415,2395.6,2394.8,0.15823336]
[1769953612344,0.72608504,2395.2,2394.8,0.15823336]
[1769953612547,0.72608504,2395.0,2394.8,0.15823336]
[1769953612748,0.72608504,2395.2,2394.8,0.15823336]
[1769953612950,2.53721415,2395.6,2394.8,0.15823336]
[1769953613153,0.72608504,2395.3,2394.8,0.15823336]
[1769953613548,0.72608504,2395.1,2394.8,0.15823336]
[1769953613850,0.72608504,2395.3,2394.8,0.15823336]
[1769953616957,0.87527023,2395.0,2394.6,3.937]
[1769953617150,0.87527023,2394.9,2394.7,3.938]
[1769953617556,0.72608504,2394.8,2394.7,3.938]
[1769953621071,0.72608504,2394.8,2394.7,2.92950136]
[1769953621363,0.72608504,2394.8,2394.7,1.53950136]
[1769953624264,2.47736732,2395.5,2394.8,0.15823336]
[1769953624566,2.62655251,2395.6,2394.8,0.15823336]
[1769953625966,2.63782006,2395.6,2394.8,0.15823336]
[1769953626567,0.14918519,2395.5,2394.8,0.15823336]
[1769953628169,2.65184533,2395.7,2394.8,0.15823336]
[1769953630070,0.16321046,2395.6,2394.8,0.15823336]
[1769953631666,37.32267952,2395.9,2394.9,2.50406099]
[1769953631867,0.16321046,2395.9,2395.0,3.336]
[1769953633971,0.16321046,2395.7,2394.6,2.66773089]
[1769953634170,0.16321046,2395.6,2394.5,6.46706099]
[1769953634371,0.16321046,2395.5,2394.6,2.50406099]
[1769953635468,0.16321046,2395.5,2394.6,2.66773089]
[1769953636776,0.16321046,2395.4,2394.5,6.46706099]
[1769953638179,0.16321046,2395.3,2394.5,3.963]
[1769953638975,0.16321046,2395.2,2394.2,2.66773089]
[1769953640279,0.16321046,2395.0,2394.1,3.967]
[1769953640574,0.16321046,2394.7,2393.9,0.00345325]
[1769953641074,0.16321046,2394.6,2393.6,3.967]
[1769953641476,0.16321046,2394.6,2393.7,0.1636699]
[1769953642274,0.16632888,2394.6,2393.7,0.16854725]
[1769953645680,0.00311842,2394.6,2393.7,0.16854725]
[1769953646774,0.15599681,2395.0,2393.8,0.14888699]
[1769953655292,37.48088803,2395.2,2393.8,0.35792699]
[1769953655492,0.15820851,2395.2,2393.9,0.20903]
[1769953655693,0.15820851,2395.2,2394.0,0.16080578]
[1769953656388,0.15820851,2395.4,2394.0,0.16080578]
[1769953657691,37.48088803,2395.4,2394.0,0.16080578]
[1769953657884,0.15775921,2395.3,2394.0,0.16080578]
[1769953659193,0.15775921,2395.3,2394.1,0.15580743]
[1769953661193,0.15775921,2395.3,2394.2,0.15637236]
[1769953664199,0.15775921,2395.3,2394.4,0.15637236]
[1769953675002,0.15163456,2395.5,2394.4,0.15637236]
[1769953675201,0.15163456,2395.4,2394.5,0.15195037]
[1769953677802,0.15163456,2395.4,2394.4,2.50406099]
[1769953677998,0.15163456,2395.4,2394.3,6.61901136]
[1769953678202,0.15163456,2395.4,2394.4,2.50406099]
[1769953678406,0.15163456,2395.4,2394.3,6.61901136]
[1769953679113,0.15163456,2395.4,2394.4,2.50406099]
[1769953680013,0.15163456,2395.4,2394.3,6.61901136]
[1769953680213,0.15163456,2395.4,2394.4,2.50406099]
[1769953680913,0.15163456,2395.4,2393.9,6.24512255]
[1769953680914,0.15163456,2395.1,2394.0,2.65601136]
[1769953681713,0.15163456,2395.0,2394.0,2.65601136]
[1769953683112,0.15163456,2394.9,2394.0,0.15195037]
[1769953685925,0.15163456,2394.7,2393.9,0.15195037]
[1769953687633,0.15286059,2394.9,2393.9,0.15195037]
[1769953691438,0.15286059,2394.9,2393.8,3.98974517]
[1769953691835,0.15286059,2394.9,2393.9,0.15174517]
[1769953694844,37.47554011,2395.2,2393.9,0.15174517]
[1769953695342,0.15286059,2395.1,2393.9,0.15174517]
[1769953695943,0.15286059,2395.1,2393.9,2.65580616]
[1769953696134,0.15286059,2395.1,2394.0,0.15174517]
[1769953700041,0.15286059,2394.9,2394.0,0.15174517]
[1769953700544,0.15286059,2394.9,2393.8,0.15174517]
[1769953701246,0.15286059,2394.8,2393.8,0.15174517]
[1769953701942,37.47554011,2394.7,2393.7,0.00487735]
[1769953702138,37.47554011,2394.6,2393.7,0.00487735]
[1769953702446,37.47554011,2394.6,2393.7,0.00175893]
[1769953702447,0.15286059,2394.5,2393.7,0.00175893]
[1769953703346,0.15581111,2394.5,2393.7,0.00175893]
[1769953704847,37.47849063,2394.5,2393.7,0.00175893]
[1769953705050,0.15286059,2394.4,2393.7,0.00175893]
[1769953706847,37.47554011,2394.4,2393.7,0.00175893]
[1769953707043,0.15286059,2394.3,2393.7,0.00175893]
[1769953707642,0.15286059,2394.2,2393.2,0.15174517]
[1769953708441,0.15286059,2394.2,2393.2,0.15640489]
[1769953709145,0.15286059,2394.2,2393.2,0.00465972]
[1769953709441,0.15286059,2394.1,2393.2,0.00465972]
[1769953710241,0.15286059,2393.8,2392.7,0.15174517]
[1769953710439,0.15286059,2393.7,2392.7,0.15174517]
[1769953710846,0.15286059,2393.5,2392.5,0.15174517]
[1769953711142,0.15286059,2393.4,2392.5,0.15174517]
[1769953711445,0.15286059,2393.2,2392.5,0.00396814]
[1769953712045,2.62085112,2393.2,2392.5,0.00396814]
[1769953712242,0.15286059,2393.1,2392.5,0.00396814]
[1769953712443,0.15286059,2393.1,2392.0,2.089]
[1769953712643,0.15286059,2392.9,2392.0,2.089]
[1769953713647,0.15286059,2392.9,2392.0,0.15508107]
[1769953713843,0.15286059,2393.1,2392.0,0.15508107]
[1769953720853,0.15860492,2393.3,2392.0,0.15508107]
[1769953725460,0.15711388,2393.2,2392.0,0.0033359]
[1769953725762,0.15711388,2393.0,2391.6,0.15871131]
[1769953726760,0.15711388,2393.0,2391.6,0.16252543]
[1769953731366,0.15711388,2392.9,2391.6,0.16252543]
[1769953734164,0.15711388,2392.8,2391.6,0.16252543]
[1769953734364,0.16021399,2392.8,2391.6,0.16252543]
[1769953735463,0.00310011,2392.8,2391.6,0.16252543]
[1769953735657,0.00310011,2392.8,2391.7,0.15871131]
[1769953736266,0.16021399,2392.8,2391.7,0.15871131]
[1769953736864,0.15711388,2392.7,2391.7,0.15871131]
[1769953737267,0.15711388,2392.6,2391.7,0.15871131]
[1769953738166,2.61365983,2392.6,2391.6,0.00381412]
[1769953738372,0.15711388,2392.4,2391.6,0.00381412]
[1769953739469,2.45654595,2392.5,2391.6,0.16252543]
[1769953740767,2.45654595,2392.6,2391.6,0.16252543]
[1769953740967,2.45654595,2392.7,2391.6,0.16252543]
[1769953741368,2.45654595,2392.7,2391.7,0.15871131]
[1769953743468,37.48289351,2392.8,2391.8,0.15871131]
[1769953743469,2.45964606,2392.8,2391.8,0.15871131]
[1769953743666,0.00310011,2392.8,2391.8,0.15871131]
[1769953743979,0.00310011,2392.8,2392.0,0.15871131]
[1769953745074,0.16021399,2392.8,2392.0,0.15871131]
[1769953745376,0.15711388,2392.7,2392.0,0.15871131]
[1769953748486,2.45964606,2392.8,2392.0,0.15871131]
[1769953753294,2.45654595,2392.7,2392.0,0.15871131]
[1769953753689,0.1622474,2392.6,2391.7,0.16305619]
[1769953753887,0.1622474,2392.4,2391.6,0.00381412]
[1769953754083,0.1622474,2392.3,2391.6,0.00381412]
[1769953754287,0.1622474,2392.2,2391.6,0.00381412]
[1769953755392,0.1622474,2391.9,2391.6,0.00381412]
[1769953755795,0.1622474,2391.9,2391.2,0.16305619]
[1769953756087,0.1622474,2391.9,2391.0,2.48459446]
[1769953756287,0.1622474,2391.9,2390.9,2.64765065]
[1769953756288,0.1622474,2391.8,2390.9,2.64765065]
[1769953756695,0.1622474,2391.8,2390.9,2.65251828]
[1769953757190,0.1622474,2391.8,2390.9,0.16792382]
[1769953757388,0.1622474,2391.7,2390.9,0.16792382]
[1769953757586,0.1622474,2391.6,2390.9,0.00486763]
[1769953758390,2.61879335,2391.6,2390.9,0.00486763]
[1769953758597,0.1622474,2391.5,2390.9,0.00486763]
[1769953759092,0.1622474,2391.5,2390.5,0.16305619]
[1769953759288,0.1622474,2391.3,2390.4,2.091]
[1769953760199,0.1622474,2391.3,2390.4,2.09487751]
[1769953761102,0.1622474,2391.1,2390.4,2.09487751]
[1769953761397,0.16534714,2391.1,2390.4,2.09487751]
[1769953762799,0.00309974,2391.1,2390.5,0.16305619]
[1769953766398,0.16534714,2391.1,2390.4,2.09487751]
[1769953766694,0.16534714,2391.1,2390.4,0.00387751]
[1769953767098,0.16534714,2391.1,2390.4,0.1669337]
[1769953768001,0.00309974,2391.1,2390.4,0.1669337]
[1769953769204,0.16534714,2391.1,2390.4,0.1669337]
[1769953769700,0.16534714,2391.1,2390.4,0.00387751]
[1769953773807,0.16534714,2391.1,2390.1,0.16305619]
[1769953773808,0.16534714,2391.1,2389.9,0.16305619]
[1769953774602,0.1622474,2391.0,2389.6,0.16305619]
[1769953774909,0.1622474,2390.7,2389.6,0.16680887]
[1769953779009,0.15410275,2390.7,2389.6,0.16680887]
[1769953779214,0.20931,2390.8,2389.6,0.16680887]
[1769953779608,0.15720249,2391.1,2389.6,0.16680887]
[1769953779814,0.15720249,2391.1,2389.7,0.16438151]
[1769953780711,0.15410275,2390.7,2389.7,0.16438151]
[1769953781414,0.15410275,2390.5,2389.6,0.00375268]
[1769953781810,0.15410275,2390.5,2389.6,0.16813419]
[1769953783314,2.8199887,2390.5,2389.6,0.00375268]
[1769953783513,0.15410275,2390.4,2389.6,0.00375268]
[1769953783811,0.15410275,2390.1,2389.2,0.16438151]
[1769953784216,0.15410275,2390.1,2389.0,0.16438151]
[1769953784416,0.1479794,2390.0,2389.0,0.16438151]
[1769953784715,0.1479794,2389.6,2388.3,0.14805195]
[1769953784916,0.1479794,2389.5,2388.3,0.14805195]
[1769953785314,0.1479794,2389.4,2388.0,0.14805195]
[1769953785516,0.1479794,2389.2,2388.0,0.14805195]
[1769953785818,0.15294535,2389.2,2388.0,0.151433]
[1769953788314,0.1479794,2389.1,2388.0,0.00338105]
[1769953788514,0.1479794,2388.9,2387.4,0.14805195]
[1769953788716,0.1479794,2388.7,2387.4,0.14805195]
[1769953789017,0.1479794,2388.5,2387.4,0.14805195]
[1769953789514,0.1479794,2388.5,2387.4,0.15207938]
[1769953790215,8.06,2388.7,2387.4,0.15207938]
[1769953790420,8.2079794,2388.7,2387.4,0.15207938]
[1769953790617,0.1479794,2388.9,2387.4,0.15207938]
[1769953793717,0.15294535,2389.2,2387.5,0.14805195]
[1769953794219,0.00496595,2389.2,2387.7,0.14805195]
[1769953794423,0.00496595,2389.2,2387.9,0.14805195]
[1769953794723,0.00496595,2389.2,2388.0,0.14805195]
[1769953794920,0.00496595,2389.2,2388.0,0.35760195]
[1769953795117,0.00496595,2389.2,2388.1,0.14805195]
[1769953795318,2.2419794,2390.1,2388.4,0.14805195]
[1769953796013,0.1479794,2390.0,2388.4,0.14805195]
[1769953796217,0.15331903,2390.0,2388.4,0.14805195]
[1769953798018,0.1479794,2389.7,2387.8,0.14805195]
[1769953798220,0.1479794,2389.5,2387.8,0.14805195]
[1769953798724,0.1479794,2389.3,2387.8,0.14805195]
[1769953800423,0.1479794,2388.6,2386.7,0.16432317]
[1769953800638,2.45654595,2388.3,2386.7,0.16432317]
[1769953800824,2.456,2388.2,2386.4,0.16432317]
[1769953801130,2.456,2388.2,2386.7,0.16432317]
[1769953801428,2.45944653,2388.2,2386.7,0.16846864]
[1769953802926,2.45944653,2388.2,2386.9,0.16510409]
[1769953803531,2.45944653,2388.2,2387.0,0.16510409]
[1769953805030,2.45944653,2388.2,2387.1,0.16718712]
[1769953805630,2.66898653,2388.2,2386.8,0.16718712]
[1769953806531,0.21298653,2388.2,2387.0,0.16722138]
[1769953806928,0.21298653,2388.2,2387.1,0.16722138]
[1769953807527,0.21298653,2388.2,2386.7,0.00414547]
[1769953807528,0.00344653,2388.2,2386.7,0.00414547]
[1769953807830,0.20959,2387.6,2386.7,0.00414547]
[1769953808834,0.20959,2387.6,2386.8,5.96643555]
[1769953809035,0.20959,2387.6,2386.9,5.80025875]
[1769953809229,0.20959,2387.6,2386.8,0.1661768]
[1769953809527,0.20959,2387.6,2386.7,0.00414547]
[1769953810227,0.20961,2387.4,2386.7,0.00414547]
[1769953811030,7.00854595,2387.7,2386.7,0.00414547]
[1769953811031,2.66613595,2387.7,2386.7,0.00414547]
[1769953811227,0.2096,2387.5,2386.7,0.00414547]
[1769953812029,0.20961,2387.4,2386.7,0.00414547]
[1769953812331,0.20963,2387.1,2386.6,5.0511619]
[1769953813028,0.20963,2387.1,2386.6,10.85142065]
[1769953813231,0.20963,2387.1,2386.6,10.85588116]
[1769953814228,0.20963,2387.1,2386.6,5.05562241]
[1769953814436,0.20963,2387.1,2386.6,10.85588116]
[1769953815436,0.20965,2386.9,2386.6,3.62488818]
[1769953815632,0.20965,2386.9,2386.6,2.70442818]
[1769953815937,10.47654595,2387.4,2386.8,5.80025875]
[1769953816137,10.47654595,2387.4,2386.6,2.38158225]
[1769953817337,0.20966,2386.9,2386.6,2.21705818]
[1769953817537,0.20966,2386.9,2386.8,4.67981875]
[1769953817737,0.20966,2386.8,2386.6,1.0999407]
[1769953817952,0.20966,2386.8,2386.6,0.1187307]
[1769953818241,0.20966,2386.8,2386.6,7e-07]
[1769953818540,0.20966,2386.8,2386.1,6.0]
[1769953818740,0.20966,2386.8,2386.3,4.67981875]
[1769953819235,2.45654595,2387.3,2386.7,4.67981875]
[1769953819236,0.20962,2387.3,2386.7,4.67981875]
[1769953819447,0.20962,2387.2,2386.7,0.16820579]
[1769953819835,0.20962,2387.2,2386.8,4.67981875]
[1769953820245,0.20962,2387.2,2386.9,4.67981875]
[1769953820538,8.039,2387.3,2386.8,4.23944875]
[1769953820743,0.20965,2386.9,2386.7,0.00381349]
[1769953820939,8.039,2387.3,2386.1,6.0]
[1769953821159,2.45654595,2387.2,2386.1,6.0]
[1769953821943,0.20967,2386.7,2386.1,6.0049205]
[1769953822254,8.047,2386.6,2386.1,5.51629814]
[1769953822449,0.2097,2386.3,2386.1,4.46388814]
[1769953822756,0.21315223,2386.3,2386.1,3.35387236]
[1769953822950,0.21315223,2386.3,2386.2,3.09263875]
[1769953823156,0.21315223,2386.3,2386.2,1.97934875]
[1769953823351,0.21315223,2386.3,2386.2,0.87918875]
[1769953823656,0.21315223,2386.3,2386.1,2.70306111]
[1769953823847,0.21315223,2386.3,2386.1,1.75381111]
[1769953824056,0.21315223,2386.3,2386.1,1.32458111]
[1769953824651,8.051,2386.7,2386.1,1.48827964]
[1769953824859,0.20966,2386.8,2386.2,0.16369853]
[1769953825759,0.21454502,2386.8,2386.2,0.16369853]
[1769953826054,0.2097,2386.4,2386.1,0.89745111]
[1769953826358,2.46143097,2386.8,2386.2,0.16380214]
[1769953826557,0.00488502,2386.8,2386.2,0.16380214]
[1769953826949,0.2097,2386.4,2386.2,0.16380214]
[1769953827148,0.00488502,2386.8,2386.2,0.16380214]
[1769953827555,0.00488502,2386.8,2386.2,2.14e-06]
[1769953827857,0.20969,2386.5,2386.1,0.89745111]
[1769953829061,0.15425843,2386.1,2385.2,6.0]
[1769953829255,2.6709428,2386.4,2385.3,6.0]
[1769953829463,0.2097,2386.4,2385.3,6.0]
[1769953829761,0.20971,2386.3,2385.4,0.1548584]
[1769953829956,0.20971,2386.3,2385.4,0.16019257]
[1769953830258,2.61550123,2386.2,2385.5,6.0]
[1769953830559,2.61550123,2386.2,2385.2,6.0]
[1769953830560,0.15425843,2385.8,2385.2,6.0]
[1769953830760,8.23425843,2385.8,2385.2,11.29635187]
[1769953831362,0.15425843,2385.7,2385.2,6.0]
[1769953831562,0.15425843,2385.6,2385.2,4.31645686]
[1769953831758,0.15425843,2385.6,2385.2,3.71647938]
[1769953831962,8.08,2385.8,2385.2,2.84996938]
[1769953832257,4.5572428,2385.7,2385.2,1.0702415]
[1769953832463,0.20979,2385.3,2385.2,0.1013715]
[1769953832665,0.20979,2385.3,2385.2,1.5e-06]
[1769953833364,2.096,2385.7,2385.2,0.16449919]
[1769953833564,2.096,2385.7,2385.2,1.5e-06]
[1769953833862,2.30576,2385.7,2385.2,1.5e-06]
[1769953834165,0.20976,2385.6,2385.2,1.5e-06]
[1769953835464,2.4612428,2386.0,2385.3,0.16468683]
[1769953836157,0.20977,2385.6,2385.2,5.0388002]
[1769953836658,0.20977,2385.6,2385.2,4.87411337]
[1769953836857,0.20977,2385.6,2385.0,0.16408289]
[1769953837055,0.20977,2385.6,2385.0,0.16895692]
[1769953837367,37.32267952,2386.0,2385.2,0.16408289]
[1769953837368,8.12,2385.9,2385.2,0.16408289]
[1769953837963,0.20971,2386.2,2385.4,0.16408294]
[1769953838272,8.33067,2386.7,2385.4,0.16408294]
[1769953838467,8.33067,2386.7,2385.6,0.16502372]
[1769953838768,0.20968,2386.6,2385.6,0.16502372]
[1769953838973,0.20968,2386.6,2385.0,0.21468403]
[1769953838974,0.20968,2386.6,2385.8,0.16502372]
[1769953839463,3.45656663,2386.7,2386.0,0.16502372]
[1769953840171,0.20969,2386.5,2385.1,0.16444673]
[1769953840370,0.20969,2386.4,2385.1,0.16444673]
[1769953842667,37.32267952,2386.3,2385.1,0.16444673]
[1769953842970,37.32267952,2386.2,2385.1,0.16444673]
[1769953843165,0.20974,2385.9,2385.1,0.16444673]
[1769953845566,0.20975,2385.8,2385.1,0.16444673]
[1769953846864,37.32267952,2386.0,2385.1,0.16444673]
[1769953850271,37.32267952,2385.9,2385.1,0.16444673]
[1769953851875,37.32267952,2386.0,2385.1,0.16444673]
[1769953852271,37.32267952,2385.9,2385.1,0.16444673]
[1769953857080,37.32267952,2386.0,2385.1,0.16444673]
[1769953857876,37.32267952,2386.1,2385.1,0.16444673]
[1769953858378,37.32267952,2386.0,2385.1,0.16444673]
[1769953858579,37.32267952,2386.1,2385.1,0.16444673]
[1769953860180,4.9282983,2386.3,2385.1,0.16444673]
[1769953860181,37.32267952,2386.3,2385.1,0.16444673]
[1769953860477,37.32267952,2386.4,2385.1,0.16444673]
[1769953860680,37.32267952,2386.6,2385.2,0.15914968]
[1769953860982,37.32267952,2386.7,2385.2,0.36894968]
[1769953861181,37.32267952,2386.7,2385.3,0.15914968]
[1769953861378,0.00488502,2386.8,2385.7,0.36889968]
[1769953861685,0.00488502,2386.8,2385.8,0.15914968]
[1769953862080,37.32267952,2387.2,2385.8,0.15914968]
[1769953862284,37.32267952,2387.3,2385.8,0.15914968]
[1769953863284,0.00312693,2387.3,2385.9,0.15737774]
[1769953864688,0.0189629,2387.3,2385.9,0.15737774]
[1769953864984,0.0189629,2387.3,2386.1,0.16047098]
[1769953865373,0.00312693,2387.3,2386.1,0.16047098]
[1769953866078,0.0189629,2387.3,2386.1,0.16047098]
[1769953867484,0.0189629,2387.3,2386.2,0.16256937]
[1769953868981,0.01479446,2387.1,2385.9,0.16256937]
[1769953869682,8.306,2387.2,2385.9,0.16256937]
[1769953869888,0.00312693,2387.3,2385.9,0.16256937]
[1769953870085,0.01792139,2387.3,2385.9,0.16256937]
[1769953871088,0.00312693,2387.3,2385.9,0.16256937]
[1769953871284,0.01882559,2387.3,2385.9,0.16256937]
[1769953871685,0.00312693,2387.3,2385.9,0.16256937]
[1769953872682,0.01654083,2387.3,2385.9,0.16256937]
[1769953873289,0.0134139,2387.2,2385.9,0.16256937]
[1769953874995,0.01613254,2387.0,2385.9,0.16256937]
[1769953876291,0.20965,2386.9,2385.9,0.16256937]
[1769953876596,0.01645938,2386.8,2385.9,0.16256937]
[1769953877396,0.01645938,2386.8,2385.4,0.16256937]
[1769953878309,0.01645938,2386.7,2385.4,0.16256937]
[1769953878606,0.01721671,2386.6,2385.4,0.16256937]
[1769953878904,0.01721671,2386.3,2385.1,0.16256937]
[1769953879211,0.01721671,2386.1,2385.1,0.16256937]
[1769953879404,0.01721671,2386.1,2385.0,0.00487403]
[1769953879711,0.01721671,2385.8,2385.0,0.00487403]
[1769953880308,0.22696671,2385.8,2385.0,0.00487403]
[1769953880504,0.22696671,2385.8,2385.0,0.1674434]
[1769953881103,0.20976,2385.7,2385.0,0.1674434]
[1769953881299,0.0159812,2385.1,2384.8,4.5940188]
[1769953881511,0.0159812,2385.1,2384.8,2.70620986]
[1769953881807,0.0159812,2385.1,2384.8,1.83296986]
[1769953882112,0.0159812,2385.1,2383.4,1.8064]